{"text_format":"3","workbook":"xlsx","n_sheets":2,"sheets":["Sledování průběhu hubnutí","výpočty"],"not_rendered":{"charts":1,"defined_names":10},"read":"whole","date_system":"1900"}

{"sheet":"Sledování průběhu hubnutí","index":0,"n_rows":19,"n_cols":9,"rows_kept":19,"merged":[[0,3,0,7],[0,8,0,9],[1,3,2,9]]}
[null,"CÍLOVÁ HMOTNOST","ZOBRAZENÍ GRAFU","Jméno",{"$nulls":4},"ÚBYTEK HMOTNOSTI"]
[{"$nulls":3},"SLEDOVÁNÍ"]
[null,{"v":172,"d":"172.0"},"TÝDENNÍ"]
[null,"ZOBRAZIT CÍLOVOU HMOTNOST","Ano"]
[null,"V této buňce je graf sledování hmotnosti, který sleduje aktuální hmotnost. V buňce C4 vyberte Ano. V plošném grafu se zobrazí čára cílové hmotnosti."]
[]
[null,"DATUM","HMOTNOST"]
[null,{"$f":"TODAY()-77","v":"2022-01-19"},{"v":176,"d":"176.0"}]
[null,{"$f":"TODAY()-70","v":"2022-01-26"},{"v":176,"d":"176.0"}]
[null,{"$f":"TODAY()-63","v":"2022-02-02"},177.6]
[null,{"$f":"TODAY()-56","v":"2022-02-09"},176.5]
[null,{"$f":"TODAY()-49","v":"2022-02-16"},176.1]
[null,{"$f":"TODAY()-42","v":"2022-02-23"},{"v":174,"d":"174.0"}]
[null,{"$f":"TODAY()-35","v":"2022-03-02"},173.5]
[null,{"$f":"TODAY()-28","v":"2022-03-09"},{"v":173,"d":"173.0"}]
[null,{"$f":"TODAY()-21","v":"2022-03-16"},{"v":172,"d":"172.0"}]
[null,{"$f":"TODAY()-14","v":"2022-03-23"},{"v":172,"d":"172.0"}]
[null,{"$f":"TODAY()-7","v":"2022-03-30"},{"v":173,"d":"173.0"}]
[null,{"$f":"TODAY()","v":"2022-04-06"},{"v":172,"d":"172.0"}]

{"sheet":"výpočty","index":1,"n_rows":107,"n_cols":17,"rows_kept":107,"hidden":true}
["*** Tento list by měl zůstat skrytý. ***"]
[]
[{"$f":"COUNTIF(A5:A107,FALSE)","v":12},"Období","Hodnoty",{"$nulls":3},{"$f":"COUNTIF(H5:H28,\">\"&0)","v":4},"Období",null,"Hodnoty"]
[null,"Týden",null,null,{"$f":"IFERROR(IF(ZobrazitCílovouHmotnost=\"Ano\", TRUE, FALSE),FALSE)","v":true},null,null,"Měsíc","Konec měsíce"]
[{"$f":"FALSE","v":false},{"$f":"IFERROR(IF(LEN('Sledování průběhu hubnutí'!$B8)=0,TODAY(),'Sledování průběhu hubnutí'!$B8),TODAY())","v":"2022-01-19"},{"$f":"IFERROR(IF(LEN('Sledování průběhu hubnutí'!$C8)=0,CílováHmotnost,'Sledování průběhu hubnutí'!$C8),0)","v":176},{"$f":"IFERROR(IF(MIN(ObdobíGrafu)=0,TODAY(),MIN(ObdobíGrafu)),TODAY())","v":"2022-01-19"},{"$f":"IFERROR(IF($A$5,0,IF($E$4,CílováHmotnost,NA())),0)","v":172},null,null,{"$f":"IFERROR(IF($A$5,TODAY(),DATE(YEAR($B5),MONTH($B5),1)),\"\")","v":"2022-01-01"},{"$f":"IFERROR(IF($A$5,TODAY(),EOMONTH($H5,0)),\"\")","v":"2022-01-31"},{"$f":"IFERROR(IF($A$5,0,AVERAGEIFS(Hmotnost[HMOTNOST],Hmotnost[DATUM],\">=\"&$H5,Hmotnost[DATUM],\"<=\"&$I5)),NA())","v":176}]
[{"$f":"IF((LEN('Sledování průběhu hubnutí'!$C9)=0),TRUE)","v":false},{"$f":"IFERROR(IF(A6,0,IF(LEN('Sledování průběhu hubnutí'!$B9)=0,0,'Sledování průběhu hubnutí'!$B9)),\"\")","v":"2022-01-26"},{"$f":"IFERROR(IF(A6,0,IF(LEN('Sledování průběhu hubnutí'!$C9)=0,0,'Sledování průběhu hubnutí'!$C9)),\"\")","v":176},{"$f":"IFERROR(IF(MAX(ObdobíGrafu)=0,TODAY(),MAX(ObdobíGrafu)),TODAY())","v":"2022-04-06"},{"$f":"IFERROR(IF($A$5,0,IF($E$4,CílováHmotnost,NA())),0)","v":172},null,null,{"$f":"IF($I5+1>MAX($B:$B),NA(),$I5+1)","v":"2022-02-01"},{"$f":"EOMONTH($H6,0)","v":"2022-02-28"},{"$f":"IFERROR(AVERAGEIFS(Hmotnost[HMOTNOST],Hmotnost[DATUM],\">=\"&$H6,Hmotnost[DATUM],\"<=\"&$I6),NA())","v":176.05}]
[{"$f":"IF((LEN('Sledování průběhu hubnutí'!$C10)=0),TRUE)","v":false},{"$f":"IFERROR(IF(A7,0,IF(LEN('Sledování průběhu hubnutí'!$B10)=0,0,'Sledování průběhu hubnutí'!$B10)),\"\")","v":"2022-02-02"},{"$f":"IFERROR(IF(A7,0,IF(LEN('Sledování průběhu hubnutí'!$C10)=0,0,'Sledování průběhu hubnutí'!$C10)),\"\")","v":177.6},{"$nulls":4},"2022-03-01","2022-03-31",{"$f":"IFERROR(AVERAGEIFS(Hmotnost[HMOTNOST],Hmotnost[DATUM],\">=\"&$H7,Hmotnost[DATUM],\"<=\"&$I7),NA())","v":172.7}]
[{"$f":"IF((LEN('Sledování průběhu hubnutí'!$C11)=0),TRUE)","v":false},{"$f":"IFERROR(IF(A8,0,IF(LEN('Sledování průběhu hubnutí'!$B11)=0,0,'Sledování průběhu hubnutí'!$B11)),\"\")","v":"2022-02-09"},{"$f":"IFERROR(IF(A8,0,IF(LEN('Sledování průběhu hubnutí'!$C11)=0,0,'Sledování průběhu hubnutí'!$C11)),\"\")","v":176.5},{"$nulls":4},"2022-04-01","2022-04-30",{"$f":"IFERROR(AVERAGEIFS(Hmotnost[HMOTNOST],Hmotnost[DATUM],\">=\"&$H8,Hmotnost[DATUM],\"<=\"&$I8),NA())","v":172}]
[{"$f":"IF((LEN('Sledování průběhu hubnutí'!$C12)=0),TRUE)","v":false},{"$f":"IFERROR(IF(A9,0,IF(LEN('Sledování průběhu hubnutí'!$B12)=0,0,'Sledování průběhu hubnutí'!$B12)),\"\")","v":"2022-02-16"},{"$f":"IFERROR(IF(A9,0,IF(LEN('Sledování průběhu hubnutí'!$C12)=0,0,'Sledování průběhu hubnutí'!$C12)),\"\")","v":176.1},{"$nulls":4},{"$error":"#N/A"},{"$error":"#N/A"},{"$f":"IFERROR(AVERAGEIFS(Hmotnost[HMOTNOST],Hmotnost[DATUM],\">=\"&$H9,Hmotnost[DATUM],\"<=\"&$I9),NA())","v":{"$error":"#N/A"}}]
[{"$f":"IF((LEN('Sledování průběhu hubnutí'!$C13)=0),TRUE)","v":false},{"$f":"IFERROR(IF(A10,0,IF(LEN('Sledování průběhu hubnutí'!$B13)=0,0,'Sledování průběhu hubnutí'!$B13)),\"\")","v":"2022-02-23"},{"$f":"IFERROR(IF(A10,0,IF(LEN('Sledování průběhu hubnutí'!$C13)=0,0,'Sledování průběhu hubnutí'!$C13)),\"\")","v":174},{"$nulls":4},{"$error":"#N/A"},{"$error":"#N/A"},{"$f":"IFERROR(AVERAGEIFS(Hmotnost[HMOTNOST],Hmotnost[DATUM],\">=\"&$H10,Hmotnost[DATUM],\"<=\"&$I10),NA())","v":{"$error":"#N/A"}}]
[{"$f":"IF((LEN('Sledování průběhu hubnutí'!$C14)=0),TRUE)","v":false},{"$f":"IFERROR(IF(A11,0,IF(LEN('Sledování průběhu hubnutí'!$B14)=0,0,'Sledování průběhu hubnutí'!$B14)),\"\")","v":"2022-03-02"},{"$f":"IFERROR(IF(A11,0,IF(LEN('Sledování průběhu hubnutí'!$C14)=0,0,'Sledování průběhu hubnutí'!$C14)),\"\")","v":173.5},{"$nulls":4},{"$error":"#N/A"},{"$error":"#N/A"},{"$f":"IFERROR(AVERAGEIFS(Hmotnost[HMOTNOST],Hmotnost[DATUM],\">=\"&$H11,Hmotnost[DATUM],\"<=\"&$I11),NA())","v":{"$error":"#N/A"}},{"$nulls":6},{"$f":"MAX($B:$B)","v":"2022-04-06"}]
[{"$f":"IF((LEN('Sledování průběhu hubnutí'!$C15)=0),TRUE)","v":false},{"$f":"IFERROR(IF(A12,0,IF(LEN('Sledování průběhu hubnutí'!$B15)=0,0,'Sledování průběhu hubnutí'!$B15)),\"\")","v":"2022-03-09"},{"$f":"IFERROR(IF(A12,0,IF(LEN('Sledování průběhu hubnutí'!$C15)=0,0,'Sledování průběhu hubnutí'!$C15)),\"\")","v":173},{"$nulls":4},{"$error":"#N/A"},{"$error":"#N/A"},{"$f":"IFERROR(AVERAGEIFS(Hmotnost[HMOTNOST],Hmotnost[DATUM],\">=\"&$H12,Hmotnost[DATUM],\"<=\"&$I12),NA())","v":{"$error":"#N/A"}}]
[{"$f":"IF((LEN('Sledování průběhu hubnutí'!$C16)=0),TRUE)","v":false},{"$f":"IFERROR(IF(A13,0,IF(LEN('Sledování průběhu hubnutí'!$B16)=0,0,'Sledování průběhu hubnutí'!$B16)),\"\")","v":"2022-03-16"},{"$f":"IFERROR(IF(A13,0,IF(LEN('Sledování průběhu hubnutí'!$C16)=0,0,'Sledování průběhu hubnutí'!$C16)),\"\")","v":172},{"$nulls":4},{"$error":"#N/A"},{"$error":"#N/A"},{"$f":"IFERROR(AVERAGEIFS(Hmotnost[HMOTNOST],Hmotnost[DATUM],\">=\"&$H13,Hmotnost[DATUM],\"<=\"&$I13),NA())","v":{"$error":"#N/A"}}]
[{"$f":"IF((LEN('Sledování průběhu hubnutí'!$C17)=0),TRUE)","v":false},{"$f":"IFERROR(IF(A14,0,IF(LEN('Sledování průběhu hubnutí'!$B17)=0,0,'Sledování průběhu hubnutí'!$B17)),\"\")","v":"2022-03-23"},{"$f":"IFERROR(IF(A14,0,IF(LEN('Sledování průběhu hubnutí'!$C17)=0,0,'Sledování průběhu hubnutí'!$C17)),\"\")","v":172},{"$nulls":4},{"$error":"#N/A"},{"$error":"#N/A"},{"$f":"IFERROR(AVERAGEIFS(Hmotnost[HMOTNOST],Hmotnost[DATUM],\">=\"&$H14,Hmotnost[DATUM],\"<=\"&$I14),NA())","v":{"$error":"#N/A"}}]
[{"$f":"IF((LEN('Sledování průběhu hubnutí'!$C18)=0),TRUE)","v":false},{"$f":"IFERROR(IF(A15,0,IF(LEN('Sledování průběhu hubnutí'!$B18)=0,0,'Sledování průběhu hubnutí'!$B18)),\"\")","v":"2022-03-30"},{"$f":"IFERROR(IF(A15,0,IF(LEN('Sledování průběhu hubnutí'!$C18)=0,0,'Sledování průběhu hubnutí'!$C18)),\"\")","v":173},{"$nulls":4},{"$error":"#N/A"},{"$error":"#N/A"},{"$f":"IFERROR(AVERAGEIFS(Hmotnost[HMOTNOST],Hmotnost[DATUM],\">=\"&$H15,Hmotnost[DATUM],\"<=\"&$I15),NA())","v":{"$error":"#N/A"}}]
[{"$f":"IF((LEN('Sledování průběhu hubnutí'!$C19)=0),TRUE)","v":false},{"$f":"IFERROR(IF(A16,0,IF(LEN('Sledování průběhu hubnutí'!$B19)=0,0,'Sledování průběhu hubnutí'!$B19)),\"\")","v":"2022-04-06"},{"$f":"IFERROR(IF(A16,0,IF(LEN('Sledování průběhu hubnutí'!$C19)=0,0,'Sledování průběhu hubnutí'!$C19)),\"\")","v":172},{"$nulls":4},{"$error":"#N/A"},{"$error":"#N/A"},{"$f":"IFERROR(AVERAGEIFS(Hmotnost[HMOTNOST],Hmotnost[DATUM],\">=\"&$H16,Hmotnost[DATUM],\"<=\"&$I16),NA())","v":{"$error":"#N/A"}}]
[{"$f":"IF((LEN('Sledování průběhu hubnutí'!$C20)=0),TRUE)","v":true},{"$f":"IFERROR(IF(A17,0,IF(LEN('Sledování průběhu hubnutí'!$B20)=0,0,'Sledování průběhu hubnutí'!$B20)),\"\")","v":"00:00:00"},{"$f":"IFERROR(IF(A17,0,IF(LEN('Sledování průběhu hubnutí'!$C20)=0,0,'Sledování průběhu hubnutí'!$C20)),\"\")","v":0},{"$nulls":4},{"$error":"#N/A"},{"$error":"#N/A"},{"$f":"IFERROR(AVERAGEIFS(Hmotnost[HMOTNOST],Hmotnost[DATUM],\">=\"&$H17,Hmotnost[DATUM],\"<=\"&$I17),NA())","v":{"$error":"#N/A"}}]
[{"$f":"IF((LEN('Sledování průběhu hubnutí'!$C21)=0),TRUE)","v":true},{"$f":"IFERROR(IF(A18,0,IF(LEN('Sledování průběhu hubnutí'!$B21)=0,0,'Sledování průběhu hubnutí'!$B21)),\"\")","v":"00:00:00"},{"$f":"IFERROR(IF(A18,0,IF(LEN('Sledování průběhu hubnutí'!$C21)=0,0,'Sledování průběhu hubnutí'!$C21)),\"\")","v":0},{"$nulls":4},{"$error":"#N/A"},{"$error":"#N/A"},{"$f":"IFERROR(AVERAGEIFS(Hmotnost[HMOTNOST],Hmotnost[DATUM],\">=\"&$H18,Hmotnost[DATUM],\"<=\"&$I18),NA())","v":{"$error":"#N/A"}}]
[{"$f":"IF((LEN('Sledování průběhu hubnutí'!$C22)=0),TRUE)","v":true},{"$f":"IFERROR(IF(A19,0,IF(LEN('Sledování průběhu hubnutí'!$B22)=0,0,'Sledování průběhu hubnutí'!$B22)),\"\")","v":"00:00:00"},{"$f":"IFERROR(IF(A19,0,IF(LEN('Sledování průběhu hubnutí'!$C22)=0,0,'Sledování průběhu hubnutí'!$C22)),\"\")","v":0},{"$nulls":4},{"$error":"#N/A"},{"$error":"#N/A"},{"$f":"IFERROR(AVERAGEIFS(Hmotnost[HMOTNOST],Hmotnost[DATUM],\">=\"&$H19,Hmotnost[DATUM],\"<=\"&$I19),NA())","v":{"$error":"#N/A"}}]
[{"$f":"IF((LEN('Sledování průběhu hubnutí'!$C23)=0),TRUE)","v":true},{"$f":"IFERROR(IF(A20,0,IF(LEN('Sledování průběhu hubnutí'!$B23)=0,0,'Sledování průběhu hubnutí'!$B23)),\"\")","v":"00:00:00"},{"$f":"IFERROR(IF(A20,0,IF(LEN('Sledování průběhu hubnutí'!$C23)=0,0,'Sledování průběhu hubnutí'!$C23)),\"\")","v":0},{"$nulls":4},{"$error":"#N/A"},{"$error":"#N/A"},{"$f":"IFERROR(AVERAGEIFS(Hmotnost[HMOTNOST],Hmotnost[DATUM],\">=\"&$H20,Hmotnost[DATUM],\"<=\"&$I20),NA())","v":{"$error":"#N/A"}}]
[{"$f":"IF((LEN('Sledování průběhu hubnutí'!$C24)=0),TRUE)","v":true},{"$f":"IFERROR(IF(A21,0,IF(LEN('Sledování průběhu hubnutí'!$B24)=0,0,'Sledování průběhu hubnutí'!$B24)),\"\")","v":"00:00:00"},{"$f":"IFERROR(IF(A21,0,IF(LEN('Sledování průběhu hubnutí'!$C24)=0,0,'Sledování průběhu hubnutí'!$C24)),\"\")","v":0},{"$nulls":4},{"$error":"#N/A"},{"$error":"#N/A"},{"$f":"IFERROR(AVERAGEIFS(Hmotnost[HMOTNOST],Hmotnost[DATUM],\">=\"&$H21,Hmotnost[DATUM],\"<=\"&$I21),NA())","v":{"$error":"#N/A"}}]
[{"$f":"IF((LEN('Sledování průběhu hubnutí'!$C25)=0),TRUE)","v":true},{"$f":"IFERROR(IF(A22,0,IF(LEN('Sledování průběhu hubnutí'!$B25)=0,0,'Sledování průběhu hubnutí'!$B25)),\"\")","v":"00:00:00"},{"$f":"IFERROR(IF(A22,0,IF(LEN('Sledování průběhu hubnutí'!$C25)=0,0,'Sledování průběhu hubnutí'!$C25)),\"\")","v":0},{"$nulls":4},{"$error":"#N/A"},{"$error":"#N/A"},{"$f":"IFERROR(AVERAGEIFS(Hmotnost[HMOTNOST],Hmotnost[DATUM],\">=\"&$H22,Hmotnost[DATUM],\"<=\"&$I22),NA())","v":{"$error":"#N/A"}}]
[{"$f":"IF((LEN('Sledování průběhu hubnutí'!$C26)=0),TRUE)","v":true},{"$f":"IFERROR(IF(A23,0,IF(LEN('Sledování průběhu hubnutí'!$B26)=0,0,'Sledování průběhu hubnutí'!$B26)),\"\")","v":"00:00:00"},{"$f":"IFERROR(IF(A23,0,IF(LEN('Sledování průběhu hubnutí'!$C26)=0,0,'Sledování průběhu hubnutí'!$C26)),\"\")","v":0},{"$nulls":4},{"$error":"#N/A"},{"$error":"#N/A"},{"$f":"IFERROR(AVERAGEIFS(Hmotnost[HMOTNOST],Hmotnost[DATUM],\">=\"&$H23,Hmotnost[DATUM],\"<=\"&$I23),NA())","v":{"$error":"#N/A"}}]
[{"$f":"IF((LEN('Sledování průběhu hubnutí'!$C27)=0),TRUE)","v":true},{"$f":"IFERROR(IF(A24,0,IF(LEN('Sledování průběhu hubnutí'!$B27)=0,0,'Sledování průběhu hubnutí'!$B27)),\"\")","v":"00:00:00"},{"$f":"IFERROR(IF(A24,0,IF(LEN('Sledování průběhu hubnutí'!$C27)=0,0,'Sledování průběhu hubnutí'!$C27)),\"\")","v":0},{"$nulls":4},{"$error":"#N/A"},{"$error":"#N/A"},{"$f":"IFERROR(AVERAGEIFS(Hmotnost[HMOTNOST],Hmotnost[DATUM],\">=\"&$H24,Hmotnost[DATUM],\"<=\"&$I24),NA())","v":{"$error":"#N/A"}}]
[{"$f":"IF((LEN('Sledování průběhu hubnutí'!$C28)=0),TRUE)","v":true},{"$f":"IFERROR(IF(A25,0,IF(LEN('Sledování průběhu hubnutí'!$B28)=0,0,'Sledování průběhu hubnutí'!$B28)),\"\")","v":"00:00:00"},{"$f":"IFERROR(IF(A25,0,IF(LEN('Sledování průběhu hubnutí'!$C28)=0,0,'Sledování průběhu hubnutí'!$C28)),\"\")","v":0},{"$nulls":4},{"$error":"#N/A"},{"$error":"#N/A"},{"$f":"IFERROR(AVERAGEIFS(Hmotnost[HMOTNOST],Hmotnost[DATUM],\">=\"&$H25,Hmotnost[DATUM],\"<=\"&$I25),NA())","v":{"$error":"#N/A"}}]
[{"$f":"IF((LEN('Sledování průběhu hubnutí'!$C29)=0),TRUE)","v":true},{"$f":"IFERROR(IF(A26,0,IF(LEN('Sledování průběhu hubnutí'!$B29)=0,0,'Sledování průběhu hubnutí'!$B29)),\"\")","v":"00:00:00"},{"$f":"IFERROR(IF(A26,0,IF(LEN('Sledování průběhu hubnutí'!$C29)=0,0,'Sledování průběhu hubnutí'!$C29)),\"\")","v":0},{"$nulls":4},{"$error":"#N/A"},{"$error":"#N/A"},{"$f":"IFERROR(AVERAGEIFS(Hmotnost[HMOTNOST],Hmotnost[DATUM],\">=\"&$H26,Hmotnost[DATUM],\"<=\"&$I26),NA())","v":{"$error":"#N/A"}}]
[{"$f":"IF((LEN('Sledování průběhu hubnutí'!$C30)=0),TRUE)","v":true},{"$f":"IFERROR(IF(A27,0,IF(LEN('Sledování průběhu hubnutí'!$B30)=0,0,'Sledování průběhu hubnutí'!$B30)),\"\")","v":"00:00:00"},{"$f":"IFERROR(IF(A27,0,IF(LEN('Sledování průběhu hubnutí'!$C30)=0,0,'Sledování průběhu hubnutí'!$C30)),\"\")","v":0},{"$nulls":4},{"$error":"#N/A"},{"$error":"#N/A"},{"$f":"IFERROR(AVERAGEIFS(Hmotnost[HMOTNOST],Hmotnost[DATUM],\">=\"&$H27,Hmotnost[DATUM],\"<=\"&$I27),NA())","v":{"$error":"#N/A"}}]
[{"$f":"IF((LEN('Sledování průběhu hubnutí'!$C31)=0),TRUE)","v":true},{"$f":"IFERROR(IF(A28,0,IF(LEN('Sledování průběhu hubnutí'!$B31)=0,0,'Sledování průběhu hubnutí'!$B31)),\"\")","v":"00:00:00"},{"$f":"IFERROR(IF(A28,0,IF(LEN('Sledování průběhu hubnutí'!$C31)=0,0,'Sledování průběhu hubnutí'!$C31)),\"\")","v":0},{"$nulls":4},{"$error":"#N/A"},{"$error":"#N/A"},{"$f":"IFERROR(AVERAGEIFS(Hmotnost[HMOTNOST],Hmotnost[DATUM],\">=\"&$H28,Hmotnost[DATUM],\"<=\"&$I28),NA())","v":{"$error":"#N/A"}}]
[{"$f":"IF((LEN('Sledování průběhu hubnutí'!$C32)=0),TRUE)","v":true},{"$f":"IFERROR(IF(A29,0,IF(LEN('Sledování průběhu hubnutí'!$B32)=0,0,'Sledování průběhu hubnutí'!$B32)),\"\")","v":"00:00:00"},{"$f":"IFERROR(IF(A29,0,IF(LEN('Sledování průběhu hubnutí'!$C32)=0,0,'Sledování průběhu hubnutí'!$C32)),\"\")","v":0}]
[{"$f":"IF((LEN('Sledování průběhu hubnutí'!$C33)=0),TRUE)","v":true},{"$f":"IFERROR(IF(A30,0,IF(LEN('Sledování průběhu hubnutí'!$B33)=0,0,'Sledování průběhu hubnutí'!$B33)),\"\")","v":"00:00:00"},{"$f":"IFERROR(IF(A30,0,IF(LEN('Sledování průběhu hubnutí'!$C33)=0,0,'Sledování průběhu hubnutí'!$C33)),\"\")","v":0}]
[{"$f":"IF((LEN('Sledování průběhu hubnutí'!$C34)=0),TRUE)","v":true},{"$f":"IFERROR(IF(A31,0,IF(LEN('Sledování průběhu hubnutí'!$B34)=0,0,'Sledování průběhu hubnutí'!$B34)),\"\")","v":"00:00:00"},{"$f":"IFERROR(IF(A31,0,IF(LEN('Sledování průběhu hubnutí'!$C34)=0,0,'Sledování průběhu hubnutí'!$C34)),\"\")","v":0}]
[{"$f":"IF((LEN('Sledování průběhu hubnutí'!$C35)=0),TRUE)","v":true},{"$f":"IFERROR(IF(A32,0,IF(LEN('Sledování průběhu hubnutí'!$B35)=0,0,'Sledování průběhu hubnutí'!$B35)),\"\")","v":"00:00:00"},{"$f":"IFERROR(IF(A32,0,IF(LEN('Sledování průběhu hubnutí'!$C35)=0,0,'Sledování průběhu hubnutí'!$C35)),\"\")","v":0}]
[{"$f":"IF((LEN('Sledování průběhu hubnutí'!$C36)=0),TRUE)","v":true},{"$f":"IFERROR(IF(A33,0,IF(LEN('Sledování průběhu hubnutí'!$B36)=0,0,'Sledování průběhu hubnutí'!$B36)),\"\")","v":"00:00:00"},{"$f":"IFERROR(IF(A33,0,IF(LEN('Sledování průběhu hubnutí'!$C36)=0,0,'Sledování průběhu hubnutí'!$C36)),\"\")","v":0}]
[{"$f":"IF((LEN('Sledování průběhu hubnutí'!$C37)=0),TRUE)","v":true},{"$f":"IFERROR(IF(A34,0,IF(LEN('Sledování průběhu hubnutí'!$B37)=0,0,'Sledování průběhu hubnutí'!$B37)),\"\")","v":"00:00:00"},{"$f":"IFERROR(IF(A34,0,IF(LEN('Sledování průběhu hubnutí'!$C37)=0,0,'Sledování průběhu hubnutí'!$C37)),\"\")","v":0}]
[{"$f":"IF((LEN('Sledování průběhu hubnutí'!$C38)=0),TRUE)","v":true},{"$f":"IFERROR(IF(A35,0,IF(LEN('Sledování průběhu hubnutí'!$B38)=0,0,'Sledování průběhu hubnutí'!$B38)),\"\")","v":"00:00:00"},{"$f":"IFERROR(IF(A35,0,IF(LEN('Sledování průběhu hubnutí'!$C38)=0,0,'Sledování průběhu hubnutí'!$C38)),\"\")","v":0}]
[{"$f":"IF((LEN('Sledování průběhu hubnutí'!$C39)=0),TRUE)","v":true},{"$f":"IFERROR(IF(A36,0,IF(LEN('Sledování průběhu hubnutí'!$B39)=0,0,'Sledování průběhu hubnutí'!$B39)),\"\")","v":"00:00:00"},{"$f":"IFERROR(IF(A36,0,IF(LEN('Sledování průběhu hubnutí'!$C39)=0,0,'Sledování průběhu hubnutí'!$C39)),\"\")","v":0}]
[{"$f":"IF((LEN('Sledování průběhu hubnutí'!$C40)=0),TRUE)","v":true},{"$f":"IFERROR(IF(A37,0,IF(LEN('Sledování průběhu hubnutí'!$B40)=0,0,'Sledování průběhu hubnutí'!$B40)),\"\")","v":"00:00:00"},{"$f":"IFERROR(IF(A37,0,IF(LEN('Sledování průběhu hubnutí'!$C40)=0,0,'Sledování průběhu hubnutí'!$C40)),\"\")","v":0}]
[{"$f":"IF((LEN('Sledování průběhu hubnutí'!$C41)=0),TRUE)","v":true},{"$f":"IFERROR(IF(A38,0,IF(LEN('Sledování průběhu hubnutí'!$B41)=0,0,'Sledování průběhu hubnutí'!$B41)),\"\")","v":"00:00:00"},{"$f":"IFERROR(IF(A38,0,IF(LEN('Sledování průběhu hubnutí'!$C41)=0,0,'Sledování průběhu hubnutí'!$C41)),\"\")","v":0}]
[{"$f":"IF((LEN('Sledování průběhu hubnutí'!$C42)=0),TRUE)","v":true},{"$f":"IFERROR(IF(A39,0,IF(LEN('Sledování průběhu hubnutí'!$B42)=0,0,'Sledování průběhu hubnutí'!$B42)),\"\")","v":"00:00:00"},{"$f":"IFERROR(IF(A39,0,IF(LEN('Sledování průběhu hubnutí'!$C42)=0,0,'Sledování průběhu hubnutí'!$C42)),\"\")","v":0}]
[{"$f":"IF((LEN('Sledování průběhu hubnutí'!$C43)=0),TRUE)","v":true},{"$f":"IFERROR(IF(A40,0,IF(LEN('Sledování průběhu hubnutí'!$B43)=0,0,'Sledování průběhu hubnutí'!$B43)),\"\")","v":"00:00:00"},{"$f":"IFERROR(IF(A40,0,IF(LEN('Sledování průběhu hubnutí'!$C43)=0,0,'Sledování průběhu hubnutí'!$C43)),\"\")","v":0}]
[{"$f":"IF((LEN('Sledování průběhu hubnutí'!$C44)=0),TRUE)","v":true},{"$f":"IFERROR(IF(A41,0,IF(LEN('Sledování průběhu hubnutí'!$B44)=0,0,'Sledování průběhu hubnutí'!$B44)),\"\")","v":"00:00:00"},{"$f":"IFERROR(IF(A41,0,IF(LEN('Sledování průběhu hubnutí'!$C44)=0,0,'Sledování průběhu hubnutí'!$C44)),\"\")","v":0}]
[{"$f":"IF((LEN('Sledování průběhu hubnutí'!$C45)=0),TRUE)","v":true},{"$f":"IFERROR(IF(A42,0,IF(LEN('Sledování průběhu hubnutí'!$B45)=0,0,'Sledování průběhu hubnutí'!$B45)),\"\")","v":"00:00:00"},{"$f":"IFERROR(IF(A42,0,IF(LEN('Sledování průběhu hubnutí'!$C45)=0,0,'Sledování průběhu hubnutí'!$C45)),\"\")","v":0}]
[{"$f":"IF((LEN('Sledování průběhu hubnutí'!$C46)=0),TRUE)","v":true},{"$f":"IFERROR(IF(A43,0,IF(LEN('Sledování průběhu hubnutí'!$B46)=0,0,'Sledování průběhu hubnutí'!$B46)),\"\")","v":"00:00:00"},{"$f":"IFERROR(IF(A43,0,IF(LEN('Sledování průběhu hubnutí'!$C46)=0,0,'Sledování průběhu hubnutí'!$C46)),\"\")","v":0}]
[{"$f":"IF((LEN('Sledování průběhu hubnutí'!$C47)=0),TRUE)","v":true},{"$f":"IFERROR(IF(A44,0,IF(LEN('Sledování průběhu hubnutí'!$B47)=0,0,'Sledování průběhu hubnutí'!$B47)),\"\")","v":"00:00:00"},{"$f":"IFERROR(IF(A44,0,IF(LEN('Sledování průběhu hubnutí'!$C47)=0,0,'Sledování průběhu hubnutí'!$C47)),\"\")","v":0}]
[{"$f":"IF((LEN('Sledování průběhu hubnutí'!$C48)=0),TRUE)","v":true},{"$f":"IFERROR(IF(A45,0,IF(LEN('Sledování průběhu hubnutí'!$B48)=0,0,'Sledování průběhu hubnutí'!$B48)),\"\")","v":"00:00:00"},{"$f":"IFERROR(IF(A45,0,IF(LEN('Sledování průběhu hubnutí'!$C48)=0,0,'Sledování průběhu hubnutí'!$C48)),\"\")","v":0}]
[{"$f":"IF((LEN('Sledování průběhu hubnutí'!$C49)=0),TRUE)","v":true},{"$f":"IFERROR(IF(A46,0,IF(LEN('Sledování průběhu hubnutí'!$B49)=0,0,'Sledování průběhu hubnutí'!$B49)),\"\")","v":"00:00:00"},{"$f":"IFERROR(IF(A46,0,IF(LEN('Sledování průběhu hubnutí'!$C49)=0,0,'Sledování průběhu hubnutí'!$C49)),\"\")","v":0}]
[{"$f":"IF((LEN('Sledování průběhu hubnutí'!$C50)=0),TRUE)","v":true},{"$f":"IFERROR(IF(A47,0,IF(LEN('Sledování průběhu hubnutí'!$B50)=0,0,'Sledování průběhu hubnutí'!$B50)),\"\")","v":"00:00:00"},{"$f":"IFERROR(IF(A47,0,IF(LEN('Sledování průběhu hubnutí'!$C50)=0,0,'Sledování průběhu hubnutí'!$C50)),\"\")","v":0}]
[{"$f":"IF((LEN('Sledování průběhu hubnutí'!$C51)=0),TRUE)","v":true},{"$f":"IFERROR(IF(A48,0,IF(LEN('Sledování průběhu hubnutí'!$B51)=0,0,'Sledování průběhu hubnutí'!$B51)),\"\")","v":"00:00:00"},{"$f":"IFERROR(IF(A48,0,IF(LEN('Sledování průběhu hubnutí'!$C51)=0,0,'Sledování průběhu hubnutí'!$C51)),\"\")","v":0}]
[{"$f":"IF((LEN('Sledování průběhu hubnutí'!$C52)=0),TRUE)","v":true},{"$f":"IFERROR(IF(A49,0,IF(LEN('Sledování průběhu hubnutí'!$B52)=0,0,'Sledování průběhu hubnutí'!$B52)),\"\")","v":"00:00:00"},{"$f":"IFERROR(IF(A49,0,IF(LEN('Sledování průběhu hubnutí'!$C52)=0,0,'Sledování průběhu hubnutí'!$C52)),\"\")","v":0}]
[{"$f":"IF((LEN('Sledování průběhu hubnutí'!$C53)=0),TRUE)","v":true},{"$f":"IFERROR(IF(A50,0,IF(LEN('Sledování průběhu hubnutí'!$B53)=0,0,'Sledování průběhu hubnutí'!$B53)),\"\")","v":"00:00:00"},{"$f":"IFERROR(IF(A50,0,IF(LEN('Sledování průběhu hubnutí'!$C53)=0,0,'Sledování průběhu hubnutí'!$C53)),\"\")","v":0}]
[{"$f":"IF((LEN('Sledování průběhu hubnutí'!$C54)=0),TRUE)","v":true},{"$f":"IFERROR(IF(A51,0,IF(LEN('Sledování průběhu hubnutí'!$B54)=0,0,'Sledování průběhu hubnutí'!$B54)),\"\")","v":"00:00:00"},{"$f":"IFERROR(IF(A51,0,IF(LEN('Sledování průběhu hubnutí'!$C54)=0,0,'Sledování průběhu hubnutí'!$C54)),\"\")","v":0}]
[{"$f":"IF((LEN('Sledování průběhu hubnutí'!$C55)=0),TRUE)","v":true},{"$f":"IFERROR(IF(A52,0,IF(LEN('Sledování průběhu hubnutí'!$B55)=0,0,'Sledování průběhu hubnutí'!$B55)),\"\")","v":"00:00:00"},{"$f":"IFERROR(IF(A52,0,IF(LEN('Sledování průběhu hubnutí'!$C55)=0,0,'Sledování průběhu hubnutí'!$C55)),\"\")","v":0}]
[{"$f":"IF((LEN('Sledování průběhu hubnutí'!$C56)=0),TRUE)","v":true},{"$f":"IFERROR(IF(A53,0,IF(LEN('Sledování průběhu hubnutí'!$B56)=0,0,'Sledování průběhu hubnutí'!$B56)),\"\")","v":"00:00:00"},{"$f":"IFERROR(IF(A53,0,IF(LEN('Sledování průběhu hubnutí'!$C56)=0,0,'Sledování průběhu hubnutí'!$C56)),\"\")","v":0}]
[{"$f":"IF((LEN('Sledování průběhu hubnutí'!$C57)=0),TRUE)","v":true},{"$f":"IFERROR(IF(A54,0,IF(LEN('Sledování průběhu hubnutí'!$B57)=0,0,'Sledování průběhu hubnutí'!$B57)),\"\")","v":"00:00:00"},{"$f":"IFERROR(IF(A54,0,IF(LEN('Sledování průběhu hubnutí'!$C57)=0,0,'Sledování průběhu hubnutí'!$C57)),\"\")","v":0}]
[{"$f":"IF((LEN('Sledování průběhu hubnutí'!$C58)=0),TRUE)","v":true},{"$f":"IFERROR(IF(A55,0,IF(LEN('Sledování průběhu hubnutí'!$B58)=0,0,'Sledování průběhu hubnutí'!$B58)),\"\")","v":"00:00:00"},{"$f":"IFERROR(IF(A55,0,IF(LEN('Sledování průběhu hubnutí'!$C58)=0,0,'Sledování průběhu hubnutí'!$C58)),\"\")","v":0}]
[{"$f":"IF((LEN('Sledování průběhu hubnutí'!$C59)=0),TRUE)","v":true},{"$f":"IFERROR(IF(A56,0,IF(LEN('Sledování průběhu hubnutí'!$B59)=0,0,'Sledování průběhu hubnutí'!$B59)),\"\")","v":"00:00:00"},{"$f":"IFERROR(IF(A56,0,IF(LEN('Sledování průběhu hubnutí'!$C59)=0,0,'Sledování průběhu hubnutí'!$C59)),\"\")","v":0}]
[{"$f":"IF((LEN('Sledování průběhu hubnutí'!$C60)=0),TRUE)","v":true},{"$f":"IFERROR(IF(A57,0,IF(LEN('Sledování průběhu hubnutí'!$B60)=0,0,'Sledování průběhu hubnutí'!$B60)),\"\")","v":"00:00:00"},{"$f":"IFERROR(IF(A57,0,IF(LEN('Sledování průběhu hubnutí'!$C60)=0,0,'Sledování průběhu hubnutí'!$C60)),\"\")","v":0}]
[{"$f":"IF((LEN('Sledování průběhu hubnutí'!$C61)=0),TRUE)","v":true},{"$f":"IFERROR(IF(A58,0,IF(LEN('Sledování průběhu hubnutí'!$B61)=0,0,'Sledování průběhu hubnutí'!$B61)),\"\")","v":"00:00:00"},{"$f":"IFERROR(IF(A58,0,IF(LEN('Sledování průběhu hubnutí'!$C61)=0,0,'Sledování průběhu hubnutí'!$C61)),\"\")","v":0}]
[{"$f":"IF((LEN('Sledování průběhu hubnutí'!$C62)=0),TRUE)","v":true},{"$f":"IFERROR(IF(A59,0,IF(LEN('Sledování průběhu hubnutí'!$B62)=0,0,'Sledování průběhu hubnutí'!$B62)),\"\")","v":"00:00:00"},{"$f":"IFERROR(IF(A59,0,IF(LEN('Sledování průběhu hubnutí'!$C62)=0,0,'Sledování průběhu hubnutí'!$C62)),\"\")","v":0}]
[{"$f":"IF((LEN('Sledování průběhu hubnutí'!$C63)=0),TRUE)","v":true},{"$f":"IFERROR(IF(A60,0,IF(LEN('Sledování průběhu hubnutí'!$B63)=0,0,'Sledování průběhu hubnutí'!$B63)),\"\")","v":"00:00:00"},{"$f":"IFERROR(IF(A60,0,IF(LEN('Sledování průběhu hubnutí'!$C63)=0,0,'Sledování průběhu hubnutí'!$C63)),\"\")","v":0}]
[{"$f":"IF((LEN('Sledování průběhu hubnutí'!$C64)=0),TRUE)","v":true},{"$f":"IFERROR(IF(A61,0,IF(LEN('Sledování průběhu hubnutí'!$B64)=0,0,'Sledování průběhu hubnutí'!$B64)),\"\")","v":"00:00:00"},{"$f":"IFERROR(IF(A61,0,IF(LEN('Sledování průběhu hubnutí'!$C64)=0,0,'Sledování průběhu hubnutí'!$C64)),\"\")","v":0}]
[{"$f":"IF((LEN('Sledování průběhu hubnutí'!$C65)=0),TRUE)","v":true},{"$f":"IFERROR(IF(A62,0,IF(LEN('Sledování průběhu hubnutí'!$B65)=0,0,'Sledování průběhu hubnutí'!$B65)),\"\")","v":"00:00:00"},{"$f":"IFERROR(IF(A62,0,IF(LEN('Sledování průběhu hubnutí'!$C65)=0,0,'Sledování průběhu hubnutí'!$C65)),\"\")","v":0}]
[{"$f":"IF((LEN('Sledování průběhu hubnutí'!$C66)=0),TRUE)","v":true},{"$f":"IFERROR(IF(A63,0,IF(LEN('Sledování průběhu hubnutí'!$B66)=0,0,'Sledování průběhu hubnutí'!$B66)),\"\")","v":"00:00:00"},{"$f":"IFERROR(IF(A63,0,IF(LEN('Sledování průběhu hubnutí'!$C66)=0,0,'Sledování průběhu hubnutí'!$C66)),\"\")","v":0}]
[{"$f":"IF((LEN('Sledování průběhu hubnutí'!$C67)=0),TRUE)","v":true},{"$f":"IFERROR(IF(A64,0,IF(LEN('Sledování průběhu hubnutí'!$B67)=0,0,'Sledování průběhu hubnutí'!$B67)),\"\")","v":"00:00:00"},{"$f":"IFERROR(IF(A64,0,IF(LEN('Sledování průběhu hubnutí'!$C67)=0,0,'Sledování průběhu hubnutí'!$C67)),\"\")","v":0}]
[{"$f":"IF((LEN('Sledování průběhu hubnutí'!$C68)=0),TRUE)","v":true},{"$f":"IFERROR(IF(A65,0,IF(LEN('Sledování průběhu hubnutí'!$B68)=0,0,'Sledování průběhu hubnutí'!$B68)),\"\")","v":"00:00:00"},{"$f":"IFERROR(IF(A65,0,IF(LEN('Sledování průběhu hubnutí'!$C68)=0,0,'Sledování průběhu hubnutí'!$C68)),\"\")","v":0}]
[{"$f":"IF((LEN('Sledování průběhu hubnutí'!$C69)=0),TRUE)","v":true},{"$f":"IFERROR(IF(A66,0,IF(LEN('Sledování průběhu hubnutí'!$B69)=0,0,'Sledování průběhu hubnutí'!$B69)),\"\")","v":"00:00:00"},{"$f":"IFERROR(IF(A66,0,IF(LEN('Sledování průběhu hubnutí'!$C69)=0,0,'Sledování průběhu hubnutí'!$C69)),\"\")","v":0}]
[{"$f":"IF((LEN('Sledování průběhu hubnutí'!$C70)=0),TRUE)","v":true},{"$f":"IFERROR(IF(A67,0,IF(LEN('Sledování průběhu hubnutí'!$B70)=0,0,'Sledování průběhu hubnutí'!$B70)),\"\")","v":"00:00:00"},{"$f":"IFERROR(IF(A67,0,IF(LEN('Sledování průběhu hubnutí'!$C70)=0,0,'Sledování průběhu hubnutí'!$C70)),\"\")","v":0}]
[{"$f":"IF((LEN('Sledování průběhu hubnutí'!$C71)=0),TRUE)","v":true},{"$f":"IFERROR(IF(A68,0,IF(LEN('Sledování průběhu hubnutí'!$B71)=0,0,'Sledování průběhu hubnutí'!$B71)),\"\")","v":"00:00:00"},{"$f":"IFERROR(IF(A68,0,IF(LEN('Sledování průběhu hubnutí'!$C71)=0,0,'Sledování průběhu hubnutí'!$C71)),\"\")","v":0}]
[{"$f":"IF((LEN('Sledování průběhu hubnutí'!$C72)=0),TRUE)","v":true},{"$f":"IFERROR(IF(A69,0,IF(LEN('Sledování průběhu hubnutí'!$B72)=0,0,'Sledování průběhu hubnutí'!$B72)),\"\")","v":"00:00:00"},{"$f":"IFERROR(IF(A69,0,IF(LEN('Sledování průběhu hubnutí'!$C72)=0,0,'Sledování průběhu hubnutí'!$C72)),\"\")","v":0}]
[{"$f":"IF((LEN('Sledování průběhu hubnutí'!$C73)=0),TRUE)","v":true},{"$f":"IFERROR(IF(A70,0,IF(LEN('Sledování průběhu hubnutí'!$B73)=0,0,'Sledování průběhu hubnutí'!$B73)),\"\")","v":"00:00:00"},{"$f":"IFERROR(IF(A70,0,IF(LEN('Sledování průběhu hubnutí'!$C73)=0,0,'Sledování průběhu hubnutí'!$C73)),\"\")","v":0}]
[{"$f":"IF((LEN('Sledování průběhu hubnutí'!$C74)=0),TRUE)","v":true},{"$f":"IFERROR(IF(A71,0,IF(LEN('Sledování průběhu hubnutí'!$B74)=0,0,'Sledování průběhu hubnutí'!$B74)),\"\")","v":"00:00:00"},{"$f":"IFERROR(IF(A71,0,IF(LEN('Sledování průběhu hubnutí'!$C74)=0,0,'Sledování průběhu hubnutí'!$C74)),\"\")","v":0}]
[{"$f":"IF((LEN('Sledování průběhu hubnutí'!$C75)=0),TRUE)","v":true},{"$f":"IFERROR(IF(A72,0,IF(LEN('Sledování průběhu hubnutí'!$B75)=0,0,'Sledování průběhu hubnutí'!$B75)),\"\")","v":"00:00:00"},{"$f":"IFERROR(IF(A72,0,IF(LEN('Sledování průběhu hubnutí'!$C75)=0,0,'Sledování průběhu hubnutí'!$C75)),\"\")","v":0}]
[{"$f":"IF((LEN('Sledování průběhu hubnutí'!$C76)=0),TRUE)","v":true},{"$f":"IFERROR(IF(A73,0,IF(LEN('Sledování průběhu hubnutí'!$B76)=0,0,'Sledování průběhu hubnutí'!$B76)),\"\")","v":"00:00:00"},{"$f":"IFERROR(IF(A73,0,IF(LEN('Sledování průběhu hubnutí'!$C76)=0,0,'Sledování průběhu hubnutí'!$C76)),\"\")","v":0}]
[{"$f":"IF((LEN('Sledování průběhu hubnutí'!$C77)=0),TRUE)","v":true},{"$f":"IFERROR(IF(A74,0,IF(LEN('Sledování průběhu hubnutí'!$B77)=0,0,'Sledování průběhu hubnutí'!$B77)),\"\")","v":"00:00:00"},{"$f":"IFERROR(IF(A74,0,IF(LEN('Sledování průběhu hubnutí'!$C77)=0,0,'Sledování průběhu hubnutí'!$C77)),\"\")","v":0}]
[{"$f":"IF((LEN('Sledování průběhu hubnutí'!$C78)=0),TRUE)","v":true},{"$f":"IFERROR(IF(A75,0,IF(LEN('Sledování průběhu hubnutí'!$B78)=0,0,'Sledování průběhu hubnutí'!$B78)),\"\")","v":"00:00:00"},{"$f":"IFERROR(IF(A75,0,IF(LEN('Sledování průběhu hubnutí'!$C78)=0,0,'Sledování průběhu hubnutí'!$C78)),\"\")","v":0}]
[{"$f":"IF((LEN('Sledování průběhu hubnutí'!$C79)=0),TRUE)","v":true},{"$f":"IFERROR(IF(A76,0,IF(LEN('Sledování průběhu hubnutí'!$B79)=0,0,'Sledování průběhu hubnutí'!$B79)),\"\")","v":"00:00:00"},{"$f":"IFERROR(IF(A76,0,IF(LEN('Sledování průběhu hubnutí'!$C79)=0,0,'Sledování průběhu hubnutí'!$C79)),\"\")","v":0}]
[{"$f":"IF((LEN('Sledování průběhu hubnutí'!$C80)=0),TRUE)","v":true},{"$f":"IFERROR(IF(A77,0,IF(LEN('Sledování průběhu hubnutí'!$B80)=0,0,'Sledování průběhu hubnutí'!$B80)),\"\")","v":"00:00:00"},{"$f":"IFERROR(IF(A77,0,IF(LEN('Sledování průběhu hubnutí'!$C80)=0,0,'Sledování průběhu hubnutí'!$C80)),\"\")","v":0}]
[{"$f":"IF((LEN('Sledování průběhu hubnutí'!$C81)=0),TRUE)","v":true},{"$f":"IFERROR(IF(A78,0,IF(LEN('Sledování průběhu hubnutí'!$B81)=0,0,'Sledování průběhu hubnutí'!$B81)),\"\")","v":"00:00:00"},{"$f":"IFERROR(IF(A78,0,IF(LEN('Sledování průběhu hubnutí'!$C81)=0,0,'Sledování průběhu hubnutí'!$C81)),\"\")","v":0}]
[{"$f":"IF((LEN('Sledování průběhu hubnutí'!$C82)=0),TRUE)","v":true},{"$f":"IFERROR(IF(A79,0,IF(LEN('Sledování průběhu hubnutí'!$B82)=0,0,'Sledování průběhu hubnutí'!$B82)),\"\")","v":"00:00:00"},{"$f":"IFERROR(IF(A79,0,IF(LEN('Sledování průběhu hubnutí'!$C82)=0,0,'Sledování průběhu hubnutí'!$C82)),\"\")","v":0}]
[{"$f":"IF((LEN('Sledování průběhu hubnutí'!$C83)=0),TRUE)","v":true},{"$f":"IFERROR(IF(A80,0,IF(LEN('Sledování průběhu hubnutí'!$B83)=0,0,'Sledování průběhu hubnutí'!$B83)),\"\")","v":"00:00:00"},{"$f":"IFERROR(IF(A80,0,IF(LEN('Sledování průběhu hubnutí'!$C83)=0,0,'Sledování průběhu hubnutí'!$C83)),\"\")","v":0}]
[{"$f":"IF((LEN('Sledování průběhu hubnutí'!$C84)=0),TRUE)","v":true},{"$f":"IFERROR(IF(A81,0,IF(LEN('Sledování průběhu hubnutí'!$B84)=0,0,'Sledování průběhu hubnutí'!$B84)),\"\")","v":"00:00:00"},{"$f":"IFERROR(IF(A81,0,IF(LEN('Sledování průběhu hubnutí'!$C84)=0,0,'Sledování průběhu hubnutí'!$C84)),\"\")","v":0}]
[{"$f":"IF((LEN('Sledování průběhu hubnutí'!$C85)=0),TRUE)","v":true},{"$f":"IFERROR(IF(A82,0,IF(LEN('Sledování průběhu hubnutí'!$B85)=0,0,'Sledování průběhu hubnutí'!$B85)),\"\")","v":"00:00:00"},{"$f":"IFERROR(IF(A82,0,IF(LEN('Sledování průběhu hubnutí'!$C85)=0,0,'Sledování průběhu hubnutí'!$C85)),\"\")","v":0}]
[{"$f":"IF((LEN('Sledování průběhu hubnutí'!$C86)=0),TRUE)","v":true},{"$f":"IFERROR(IF(A83,0,IF(LEN('Sledování průběhu hubnutí'!$B86)=0,0,'Sledování průběhu hubnutí'!$B86)),\"\")","v":"00:00:00"},{"$f":"IFERROR(IF(A83,0,IF(LEN('Sledování průběhu hubnutí'!$C86)=0,0,'Sledování průběhu hubnutí'!$C86)),\"\")","v":0}]
[{"$f":"IF((LEN('Sledování průběhu hubnutí'!$C87)=0),TRUE)","v":true},{"$f":"IFERROR(IF(A84,0,IF(LEN('Sledování průběhu hubnutí'!$B87)=0,0,'Sledování průběhu hubnutí'!$B87)),\"\")","v":"00:00:00"},{"$f":"IFERROR(IF(A84,0,IF(LEN('Sledování průběhu hubnutí'!$C87)=0,0,'Sledování průběhu hubnutí'!$C87)),\"\")","v":0}]
[{"$f":"IF((LEN('Sledování průběhu hubnutí'!$C88)=0),TRUE)","v":true},{"$f":"IFERROR(IF(A85,0,IF(LEN('Sledování průběhu hubnutí'!$B88)=0,0,'Sledování průběhu hubnutí'!$B88)),\"\")","v":"00:00:00"},{"$f":"IFERROR(IF(A85,0,IF(LEN('Sledování průběhu hubnutí'!$C88)=0,0,'Sledování průběhu hubnutí'!$C88)),\"\")","v":0}]
[{"$f":"IF((LEN('Sledování průběhu hubnutí'!$C89)=0),TRUE)","v":true},{"$f":"IFERROR(IF(A86,0,IF(LEN('Sledování průběhu hubnutí'!$B89)=0,0,'Sledování průběhu hubnutí'!$B89)),\"\")","v":"00:00:00"},{"$f":"IFERROR(IF(A86,0,IF(LEN('Sledování průběhu hubnutí'!$C89)=0,0,'Sledování průběhu hubnutí'!$C89)),\"\")","v":0}]
[{"$f":"IF((LEN('Sledování průběhu hubnutí'!$C90)=0),TRUE)","v":true},{"$f":"IFERROR(IF(A87,0,IF(LEN('Sledování průběhu hubnutí'!$B90)=0,0,'Sledování průběhu hubnutí'!$B90)),\"\")","v":"00:00:00"},{"$f":"IFERROR(IF(A87,0,IF(LEN('Sledování průběhu hubnutí'!$C90)=0,0,'Sledování průběhu hubnutí'!$C90)),\"\")","v":0}]
[{"$f":"IF((LEN('Sledování průběhu hubnutí'!$C91)=0),TRUE)","v":true},{"$f":"IFERROR(IF(A88,0,IF(LEN('Sledování průběhu hubnutí'!$B91)=0,0,'Sledování průběhu hubnutí'!$B91)),\"\")","v":"00:00:00"},{"$f":"IFERROR(IF(A88,0,IF(LEN('Sledování průběhu hubnutí'!$C91)=0,0,'Sledování průběhu hubnutí'!$C91)),\"\")","v":0}]
[{"$f":"IF((LEN('Sledování průběhu hubnutí'!$C92)=0),TRUE)","v":true},{"$f":"IFERROR(IF(A89,0,IF(LEN('Sledování průběhu hubnutí'!$B92)=0,0,'Sledování průběhu hubnutí'!$B92)),\"\")","v":"00:00:00"},{"$f":"IFERROR(IF(A89,0,IF(LEN('Sledování průběhu hubnutí'!$C92)=0,0,'Sledování průběhu hubnutí'!$C92)),\"\")","v":0}]
[{"$f":"IF((LEN('Sledování průběhu hubnutí'!$C93)=0),TRUE)","v":true},{"$f":"IFERROR(IF(A90,0,IF(LEN('Sledování průběhu hubnutí'!$B93)=0,0,'Sledování průběhu hubnutí'!$B93)),\"\")","v":"00:00:00"},{"$f":"IFERROR(IF(A90,0,IF(LEN('Sledování průběhu hubnutí'!$C93)=0,0,'Sledování průběhu hubnutí'!$C93)),\"\")","v":0}]
[{"$f":"IF((LEN('Sledování průběhu hubnutí'!$C94)=0),TRUE)","v":true},{"$f":"IFERROR(IF(A91,0,IF(LEN('Sledování průběhu hubnutí'!$B94)=0,0,'Sledování průběhu hubnutí'!$B94)),\"\")","v":"00:00:00"},{"$f":"IFERROR(IF(A91,0,IF(LEN('Sledování průběhu hubnutí'!$C94)=0,0,'Sledování průběhu hubnutí'!$C94)),\"\")","v":0}]
[{"$f":"IF((LEN('Sledování průběhu hubnutí'!$C95)=0),TRUE)","v":true},{"$f":"IFERROR(IF(A92,0,IF(LEN('Sledování průběhu hubnutí'!$B95)=0,0,'Sledování průběhu hubnutí'!$B95)),\"\")","v":"00:00:00"},{"$f":"IFERROR(IF(A92,0,IF(LEN('Sledování průběhu hubnutí'!$C95)=0,0,'Sledování průběhu hubnutí'!$C95)),\"\")","v":0}]
[{"$f":"IF((LEN('Sledování průběhu hubnutí'!$C96)=0),TRUE)","v":true},{"$f":"IFERROR(IF(A93,0,IF(LEN('Sledování průběhu hubnutí'!$B96)=0,0,'Sledování průběhu hubnutí'!$B96)),\"\")","v":"00:00:00"},{"$f":"IFERROR(IF(A93,0,IF(LEN('Sledování průběhu hubnutí'!$C96)=0,0,'Sledování průběhu hubnutí'!$C96)),\"\")","v":0}]
[{"$f":"IF((LEN('Sledování průběhu hubnutí'!$C97)=0),TRUE)","v":true},{"$f":"IFERROR(IF(A94,0,IF(LEN('Sledování průběhu hubnutí'!$B97)=0,0,'Sledování průběhu hubnutí'!$B97)),\"\")","v":"00:00:00"},{"$f":"IFERROR(IF(A94,0,IF(LEN('Sledování průběhu hubnutí'!$C97)=0,0,'Sledování průběhu hubnutí'!$C97)),\"\")","v":0}]
[{"$f":"IF((LEN('Sledování průběhu hubnutí'!$C98)=0),TRUE)","v":true},{"$f":"IFERROR(IF(A95,0,IF(LEN('Sledování průběhu hubnutí'!$B98)=0,0,'Sledování průběhu hubnutí'!$B98)),\"\")","v":"00:00:00"},{"$f":"IFERROR(IF(A95,0,IF(LEN('Sledování průběhu hubnutí'!$C98)=0,0,'Sledování průběhu hubnutí'!$C98)),\"\")","v":0}]
[{"$f":"IF((LEN('Sledování průběhu hubnutí'!$C99)=0),TRUE)","v":true},{"$f":"IFERROR(IF(A96,0,IF(LEN('Sledování průběhu hubnutí'!$B99)=0,0,'Sledování průběhu hubnutí'!$B99)),\"\")","v":"00:00:00"},{"$f":"IFERROR(IF(A96,0,IF(LEN('Sledování průběhu hubnutí'!$C99)=0,0,'Sledování průběhu hubnutí'!$C99)),\"\")","v":0}]
[{"$f":"IF((LEN('Sledování průběhu hubnutí'!$C100)=0),TRUE)","v":true},{"$f":"IFERROR(IF(A97,0,IF(LEN('Sledování průběhu hubnutí'!$B100)=0,0,'Sledování průběhu hubnutí'!$B100)),\"\")","v":"00:00:00"},{"$f":"IFERROR(IF(A97,0,IF(LEN('Sledování průběhu hubnutí'!$C100)=0,0,'Sledování průběhu hubnutí'!$C100)),\"\")","v":0}]
[{"$f":"IF((LEN('Sledování průběhu hubnutí'!$C101)=0),TRUE)","v":true},{"$f":"IFERROR(IF(A98,0,IF(LEN('Sledování průběhu hubnutí'!$B101)=0,0,'Sledování průběhu hubnutí'!$B101)),\"\")","v":"00:00:00"},{"$f":"IFERROR(IF(A98,0,IF(LEN('Sledování průběhu hubnutí'!$C101)=0,0,'Sledování průběhu hubnutí'!$C101)),\"\")","v":0}]
[{"$f":"IF((LEN('Sledování průběhu hubnutí'!$C102)=0),TRUE)","v":true},{"$f":"IFERROR(IF(A99,0,IF(LEN('Sledování průběhu hubnutí'!$B102)=0,0,'Sledování průběhu hubnutí'!$B102)),\"\")","v":"00:00:00"},{"$f":"IFERROR(IF(A99,0,IF(LEN('Sledování průběhu hubnutí'!$C102)=0,0,'Sledování průběhu hubnutí'!$C102)),\"\")","v":0}]
[{"$f":"IF((LEN('Sledování průběhu hubnutí'!$C103)=0),TRUE)","v":true},{"$f":"IFERROR(IF(A100,0,IF(LEN('Sledování průběhu hubnutí'!$B103)=0,0,'Sledování průběhu hubnutí'!$B103)),\"\")","v":"00:00:00"},{"$f":"IFERROR(IF(A100,0,IF(LEN('Sledování průběhu hubnutí'!$C103)=0,0,'Sledování průběhu hubnutí'!$C103)),\"\")","v":0}]
[{"$f":"IF((LEN('Sledování průběhu hubnutí'!$C104)=0),TRUE)","v":true},{"$f":"IFERROR(IF(A101,0,IF(LEN('Sledování průběhu hubnutí'!$B104)=0,0,'Sledování průběhu hubnutí'!$B104)),\"\")","v":"00:00:00"},{"$f":"IFERROR(IF(A101,0,IF(LEN('Sledování průběhu hubnutí'!$C104)=0,0,'Sledování průběhu hubnutí'!$C104)),\"\")","v":0}]
[{"$f":"IF((LEN('Sledování průběhu hubnutí'!$C105)=0),TRUE)","v":true},{"$f":"IFERROR(IF(A102,0,IF(LEN('Sledování průběhu hubnutí'!$B105)=0,0,'Sledování průběhu hubnutí'!$B105)),\"\")","v":"00:00:00"},{"$f":"IFERROR(IF(A102,0,IF(LEN('Sledování průběhu hubnutí'!$C105)=0,0,'Sledování průběhu hubnutí'!$C105)),\"\")","v":0}]
[{"$f":"IF((LEN('Sledování průběhu hubnutí'!$C106)=0),TRUE)","v":true},{"$f":"IFERROR(IF(A103,0,IF(LEN('Sledování průběhu hubnutí'!$B106)=0,0,'Sledování průběhu hubnutí'!$B106)),\"\")","v":"00:00:00"},{"$f":"IFERROR(IF(A103,0,IF(LEN('Sledování průběhu hubnutí'!$C106)=0,0,'Sledování průběhu hubnutí'!$C106)),\"\")","v":0}]
[{"$f":"IF((LEN('Sledování průběhu hubnutí'!$C107)=0),TRUE)","v":true},{"$f":"IFERROR(IF(A104,0,IF(LEN('Sledování průběhu hubnutí'!$B107)=0,0,'Sledování průběhu hubnutí'!$B107)),\"\")","v":"00:00:00"},{"$f":"IFERROR(IF(A104,0,IF(LEN('Sledování průběhu hubnutí'!$C107)=0,0,'Sledování průběhu hubnutí'!$C107)),\"\")","v":0}]
[{"$f":"IF((LEN('Sledování průběhu hubnutí'!$C108)=0),TRUE)","v":true},{"$f":"IFERROR(IF(A105,0,IF(LEN('Sledování průběhu hubnutí'!$B108)=0,0,'Sledování průběhu hubnutí'!$B108)),\"\")","v":"00:00:00"},{"$f":"IFERROR(IF(A105,0,IF(LEN('Sledování průběhu hubnutí'!$C108)=0,0,'Sledování průběhu hubnutí'!$C108)),\"\")","v":0}]
[{"$f":"IF((LEN('Sledování průběhu hubnutí'!$C109)=0),TRUE)","v":true},{"$f":"IFERROR(IF(A106,0,IF(LEN('Sledování průběhu hubnutí'!$B109)=0,0,'Sledování průběhu hubnutí'!$B109)),\"\")","v":"00:00:00"},{"$f":"IFERROR(IF(A106,0,IF(LEN('Sledování průběhu hubnutí'!$C109)=0,0,'Sledování průběhu hubnutí'!$C109)),\"\")","v":0}]
[{"$f":"IF((LEN('Sledování průběhu hubnutí'!$C110)=0),TRUE)","v":true},{"$f":"IFERROR(IF(A107,0,IF(LEN('Sledování průběhu hubnutí'!$B110)=0,0,'Sledování průběhu hubnutí'!$B110)),\"\")","v":"00:00:00"},{"$f":"IFERROR(IF(A107,0,IF(LEN('Sledování průběhu hubnutí'!$C110)=0,0,'Sledování průběhu hubnutí'!$C110)),\"\")","v":0}]